bitfinex/quotes_ETHUSD_20240722
["timestamp","ask_amount","ask_price","bid_price","bid_amount"]
[1721640853557,2.86698,3488.0,3487.4,2.86745]
[1721640857076,5.34658,3487.9,3487.2,2.86758]
[1721640857284,2.86714,3487.8,3487.0,2.86774]
[1721640857468,2.86727,3487.7,3487.0,2.86774]
[1721640857849,2.86727,3487.7,3487.1,2.8677]
[1721640858198,2.4795,3487.9,3487.1,2.8677]
[1721640858553,2.86714,3487.8,3487.2,2.8676]
[1721640858750,2.4795,3487.9,3487.4,2.8674]
[1721640858969,2.4795,3487.9,3487.5,2.86738]
[1721640859379,2.4795,3487.9,3487.3,2.86753]
[1721640860263,5.34655,3487.9,3487.3,2.86753]
[1721640861062,2.4795,3487.9,3487.3,2.86753]
[1721640861259,2.4795,3487.9,3487.1,2.86765]
[1721640861780,2.86722,3487.7,3487.1,2.86765]
[1721640862789,2.86722,3487.7,3487.0,2.86779]
[1721640862974,2.86731,3487.6,3487.0,2.86779]
[1721640863173,2.3478,3487.4,3486.8,2.86795]
[1721640863373,2.3478,3487.4,3486.9,2.86787]
[1721640863681,2.3478,3487.4,3487.0,2.86779]
[1721640864686,2.3478,3487.4,3487.1,2.86769]
[1721640864884,2.3277,3487.8,3487.2,2.86757]
[1721640865051,2.3277,3487.8,3487.4,2.86745]
[1721640865256,2.3277,3487.8,3487.2,2.86757]
[1721640865257,2.3277,3487.8,3487.2,2.86756]
[1721640865987,2.3277,3487.8,3487.3,2.86753]
[1721640866796,2.3277,3487.8,3487.1,2.86764]
[1721640866984,2.3277,3487.8,3487.0,2.86777]
[1721640866985,2.86727,3487.7,3487.0,2.86777]
[1721640867184,2.4944,3487.6,3486.9,2.86785]
[1721640867384,2.4944,3487.6,3487.0,2.86778]
[1721640868098,5.36172,3487.6,3486.8,2.86791]
[1721640868301,5.36172,3487.6,3486.9,2.86785]
[1721640868479,5.36172,3487.6,3486.7,2.86796]
[1721640868987,5.36172,3487.6,3487.0,2.86778]
[1721640870594,2.4944,3487.6,3486.4,2.2641]
[1721640870810,2.4944,3487.6,3487.2,2.86762]
[1721640872986,2.4944,3487.6,3487.0,2.86779]
[1721640873295,2.4944,3487.6,3487.1,2.86768]
[1721640878614,2.4944,3487.6,3487.2,2.86762]
[1721640878784,2.4944,3487.6,3487.0,2.86778]
[1721640878981,2.4944,3487.6,3487.2,2.86755]
[1721640879192,2.2525,3488.0,3487.5,2.86736]
[1721640879782,5.11947,3488.0,3487.3,2.86754]
[1721640879984,2.2525,3488.0,3487.4,2.86746]
[1721640880390,5.11948,3488.0,3487.4,2.86746]
[1721640883312,2.2525,3488.0,3487.5,2.86736]
[1721640884115,2.2525,3488.0,3487.6,2.86728]
[1721640884499,0.17400813,3487.9,3487.6,2.86728]
[1721640884704,2.85281493,3488.0,3487.6,2.86728]
[1721640884889,0.17400719,3487.9,3487.6,2.86728]
[1721640885089,2.85281493,3488.0,3487.6,2.86728]
[1721640885284,0.17400907,3487.9,3487.6,2.86728]
[1721640885520,0.774324,3487.9,3487.6,2.86728]
[1721640887023,0.17413531,3487.8,3487.6,2.86728]
[1721640887192,0.60031493,3487.9,3487.6,2.86728]
[1721640887393,0.60031493,3487.8,3487.6,2.86728]
[1721640888119,0.60031493,3487.7,3487.6,2.86728]
[1721640891123,0.90047239,3487.8,3487.6,2.86728]
[1721640891804,0.90047239,3487.8,3487.4,2.86746]
[1721640892021,0.60168222,3487.5,3487.4,2.86746]
[1721640892725,0.17443391,3487.5,3487.4,2.86746]
[1721640892904,0.60168222,3487.6,3487.5,2.86738]
[1721640893725,0.90047239,3487.7,3487.5,2.86738]
[1721640893926,1.07490392,3487.6,3487.4,2.86746]
[1721640894131,0.17443153,3487.5,3487.4,2.86746]
[1721640894426,1.07490392,3487.6,3487.4,2.86746]
[1721640894733,0.17443153,3487.5,3487.4,2.86746]
[1721640894929,0.90047239,3487.5,3487.3,2.86754]
[1721640895133,0.60206814,3487.4,3487.3,2.86754]
[1721640895301,0.77649967,3487.4,3487.3,2.86754]
[1721640895508,0.77661707,3487.4,3487.3,2.86754]
[1721640896026,0.77661614,3487.4,3487.3,2.86754]
[1721640896719,0.174548,3487.4,3487.3,2.86754]
[1721640896901,3.06546746,3487.4,3487.0,2.86773]
[1721640897097,0.60211946,3487.2,3487.0,2.86773]
[1721640898628,0.60211946,3487.1,3487.0,2.86773]
[1721640899127,0.60215354,3487.1,3487.0,2.86773]
[1721640899310,0.77680206,3487.1,3487.0,2.86773]
[1721640901245,0.60215354,3487.2,3487.1,2.86771]
[1721640901662,0.60215354,3487.3,3487.2,5.73526]
[1721640901826,0.75767835,3487.3,3487.2,5.73526]
[1721640902141,0.15552481,3487.3,3487.2,5.73526]
[1721640902325,0.75767835,3487.3,3487.2,2.86763]
[1721640903514,0.75767835,3487.3,3487.2,5.73526]
[1721640903713,0.15552481,3487.3,3487.2,5.73526]
[1721640904312,0.15552481,3487.3,3487.2,6.308786]
[1721640904515,0.75767835,3487.3,3487.2,6.308786]
[1721640905018,0.75768134,3487.3,3487.2,6.308786]
[1721640905323,0.60215354,3487.3,3487.2,6.308786]
[1721640905524,0.60215354,3487.3,3487.2,2.86763]
[1721640906338,0.75768311,3487.3,3487.2,2.86763]
[1721640907216,0.15552957,3487.3,3487.2,2.86763]
[1721640907416,0.60210547,3487.3,3487.2,2.86763]
[1721640907654,0.75765712,3487.3,3487.2,2.86763]
[1721640908150,0.15555136,3487.3,3487.2,2.86763]
[1721640909053,0.75766195,3487.3,3487.2,2.86763]
[1721640909217,0.15555136,3487.3,3487.2,2.86763]
[1721640909415,0.60211408,3487.3,3487.2,2.86763]
[1721640909648,0.15555136,3487.3,3487.1,2.8677]
[1721640909818,0.75768617,3487.2,3487.1,2.8677]
[1721640910750,0.60213481,3487.2,3487.1,2.8677]
[1721640910916,0.60213481,3487.3,3487.1,2.8677]
[1721640911247,0.60213481,3487.2,3486.7,3.89197]
[1721640911450,0.60213481,3487.0,3486.3,1.33070796]
[1721640911660,0.60213481,3486.7,3486.0,4.61470796]
[1721640911866,0.75768638,3486.7,3486.4,2.86823]
[1721640912085,0.60213481,3486.7,3486.4,2.86823]
[1721640912578,0.15565707,3486.6,3486.4,2.86823]
[1721640912746,0.60213481,3486.7,3486.4,2.86823]
[1721640913565,0.60213481,3486.8,3486.4,2.86823]
[1721640913752,0.60213481,3486.7,3486.4,2.86823]
[1721640913955,0.15559985,3486.6,3486.2,3.8924]
[1721640914203,2.3719,3486.6,3486.2,2.8684]
[1721640914331,2.3719,3486.6,3486.3,2.86836]
[1721640916035,2.97403481,3486.6,3486.3,2.86836]
[1721640916255,2.3719,3486.6,3486.3,2.86836]
[1721640917700,2.3719,3486.6,3486.1,2.86852]
[1721640917986,2.97403481,3486.6,3486.1,2.86852]
[1721640918286,2.3719,3486.6,3486.1,2.86852]
[1721640918444,2.97403481,3486.6,3486.1,2.86852]
[1721640919275,2.3719,3486.6,3486.1,2.86852]
[1721640920080,2.3719,3486.6,3485.9,2.86868]
[1721640920253,2.86821,3486.5,3485.9,2.86868]
[1721640922377,0.15542041,3486.4,3485.9,2.86868]
[1721640922602,4.49434481,3486.5,3485.7,2.8688]
[1721640922746,0.75756572,3486.4,3485.8,2.86876]
[1721640923093,0.15543091,3486.3,3485.8,2.86876]
[1721640923255,3.47041481,3486.4,3485.8,2.86876]
[1721640923438,0.60213481,3486.4,3485.9,2.86868]
[1721640923639,0.60213481,3486.4,3485.8,2.86872]
[1721640924083,0.60213481,3486.4,3485.9,2.86869]
[1721640924261,4.49438481,3486.5,3485.9,2.86869]
[1721640924461,0.15537738,3486.4,3485.9,2.86869]
[1721640924657,4.49438481,3486.5,3485.9,2.86869]
[1721640924974,0.15537438,3486.4,3485.9,2.86869]
[1721640925480,4.49438481,3486.5,3485.9,2.86869]
[1721640925681,0.15534491,3486.4,3485.9,2.86869]
[1721640925872,4.49438481,3486.5,3485.9,2.86869]
[1721640926074,0.15534803,3486.4,3485.9,2.86869]
[1721640926381,4.49438481,3486.5,3485.9,2.86869]
[1721640928493,2.8683,3486.4,3485.6,2.86891]
[1721640928681,2.8683,3486.4,3485.7,0.628161]
[1721640929291,2.8683,3486.4,3485.8,2.86872]
[1721640930404,2.86821,3486.5,3485.9,2.86868]
[1721640930964,2.97403481,3486.6,3486.5,2.8682]
[1721640930965,2.3719,3486.6,3486.5,2.8682]
[1721640931183,2.91033481,3487.1,3486.6,2.86812]
[1721640931404,2.3082,3487.1,3486.6,2.86812]
[1721640931702,2.478,3487.5,3486.7,1.024]
[1721640931904,2.478,3487.5,3487.2,2.86762]
[1721640932074,2.478,3487.5,3487.0,2.86773]
[1721640932682,6.36939,3487.5,3486.8,2.8679]
[1721640933376,3.502,3487.5,3486.7,2.86801]
[1721640933570,3.502,3487.5,3487.0,2.86778]
[1721640933823,3.502,3487.5,3486.9,2.86787]
[1721640933987,6.36939,3487.5,3486.9,2.86787]
[1721640934303,3.502,3487.5,3486.8,2.86795]
[1721640934507,6.36938,3487.5,3486.8,2.86795]
[1721640935203,3.502,3487.5,3486.7,2.86803]
[1721640935432,3.502,3487.5,3487.0,2.86778]
[1721640936224,6.36939,3487.5,3486.8,2.86795]
[1721640937007,3.502,3487.5,3486.9,2.86787]
[1721640938524,6.36938,3487.5,3486.9,2.86787]
[1721640939314,2.8675,3487.4,3486.7,2.86798]
[1721640939614,2.8675,3487.4,3486.8,2.86794]
[1721640939802,4.10413481,3487.5,3486.9,2.86786]
[1721640940918,4.10413481,3487.5,3487.0,2.86779]
[1721640941124,4.10413481,3487.5,3486.8,2.86795]
[1721640941125,2.478,3487.5,3487.1,2.8677]
[1721640941520,2.478,3487.5,3487.3,2.86748]
[1721640942036,3.00623481,3487.8,3487.3,2.86748]
[1721640942408,0.15504946,3487.7,3487.3,2.86748]
[1721640942605,3.00623481,3487.8,3487.3,2.86748]
[1721640943508,3.00623481,3487.8,3487.4,2.86745]
[1721640945017,3.00623481,3487.8,3487.2,2.86758]
[1721640945609,3.00623481,3487.8,3487.3,2.86754]
[1721640946510,2.86722,3487.7,3487.1,2.8677]
[1721640947040,3.00623481,3487.8,3487.2,2.86762]
[1721640947228,0.15504495,3487.7,3487.2,2.86762]
[1721640947437,0.75720596,3487.7,3487.2,2.86762]
[1721640947630,3.46935481,3487.7,3487.1,2.86767]
[1721640948210,4.49335481,3487.7,3487.1,2.86767]
[1721640948411,0.15507841,3487.6,3487.1,2.86767]
[1721640948637,4.49335481,3487.7,3487.1,2.86767]
[1721640948831,0.15507849,3487.6,3487.1,2.86767]
[1721640949023,1.62613481,3487.7,3487.2,2.86762]
[1721640949227,1.024,3487.7,3487.2,2.86762]
[1721640949425,3.89122,3487.7,3487.2,2.86762]
[1721640949838,4.49335481,3487.7,3487.2,2.86762]
[1721640950032,3.89122,3487.7,3487.2,2.86762]
[1721640950434,1.024,3487.7,3487.0,2.86778]
[1721640950648,1.024,3487.7,3487.3,2.86754]
[1721640950818,3.00623481,3487.8,3487.3,2.86754]
[1721640951523,0.15504462,3487.7,3487.1,5.73534]
[1721640951722,5.87337481,3487.8,3487.2,2.86761]
[1721640951936,3.02226602,3487.7,3487.2,2.86761]
[1721640952138,2.86721,3487.7,3487.2,2.86761]
[1721640953354,3.89121,3487.7,3487.2,2.86761]
[1721640956118,1.024,3487.7,3487.2,2.86761]
[1721640956945,3.00623481,3487.8,3487.2,2.86761]
[1721640957260,0.15505073,3487.7,3487.2,2.86761]
[1721640957463,3.00623481,3487.8,3487.2,2.86761]
[1721640957630,0.1550512,3487.7,3487.2,2.86761]
[1721640957923,3.00623481,3487.8,3487.2,2.86761]
[1721640958268,0.1550508,3487.7,3487.2,2.86761]
[1721640958464,3.00623481,3487.8,3487.2,2.86761]
[1721640959057,0.15504821,3487.7,3487.3,2.86754]
[1721640959263,5.87337481,3487.8,3487.0,2.86777]
[1721640959474,0.15504207,3487.7,3487.2,2.86762]
[1721640959631,5.87337481,3487.8,3487.2,2.86762]
[1721640959831,0.1550421,3487.7,3487.2,2.86762]
[1721640960031,5.87337481,3487.8,3487.2,2.86762]
[1721640960249,3.00623481,3487.8,3487.3,2.86754]
[1721640962065,3.89123,3487.7,3486.9,2.86784]
[1721640962252,3.89123,3487.7,3485.8,2.22163819]
[1721640962253,3.89143,3487.5,3486.8,2.86789]
[1721640962451,2.3872,3487.4,3486.8,2.86789]
[1721640962649,2.3872,3487.4,3486.9,2.86787]
[1721640964363,3.89156,3487.3,3486.7,2.86801]
[1721640965460,4.49369481,3487.3,3486.7,2.86801]
[1721640965933,2.2587,3486.8,3486.3,2.86831]
[1721640966131,2.2587,3486.8,3485.9,2.86869]
[1721640966352,2.2587,3486.8,3485.9,3.8510991]
[1721640966638,2.86804,3486.7,3486.0,2.86856]
[1721640967436,2.86804,3486.7,3486.1,2.86851]
[1721640967935,5.12666,3486.8,3486.2,2.86844]
[1721640969269,2.2587,3486.8,3486.3,2.86836]
[1721640969658,5.12665,3486.8,3486.1,2.86847]
[1721640969970,5.12665,3486.8,3486.2,2.86843]
[1721640970331,5.72878481,3486.8,3486.2,2.86843]
[1721640970537,2.86804,3486.7,3486.1,2.86852]
[1721640971730,3.89204,3486.7,3486.1,2.86852]
[1721640972067,4.49417481,3486.7,3486.1,2.86852]
[1721640972257,0.12230821,3486.6,3486.1,2.86852]
[1721640972452,4.49417481,3486.7,3486.1,2.86852]
[1721640972867,0.12230221,3486.6,3486.1,2.86852]
[1721640973064,4.49417481,3486.7,3486.1,2.86852]
[1721640973364,1.62613481,3486.7,3485.9,2.86866]
[1721640973567,1.62613481,3486.7,3485.9,3.5641721]
[1721640974068,4.49417481,3486.7,3485.9,3.5641721]
[1721640974268,0.12232033,3486.6,3485.9,3.5641721]
[1721640974438,4.49417481,3486.7,3485.9,3.5641721]
[1721640974635,4.49417481,3486.7,3486.1,2.86847]
[1721640975058,0.12231789,3486.6,3486.1,2.86847]
[1721640975269,4.49417481,3486.7,3486.1,2.86847]
[1721640975435,0.12233842,3486.6,3486.1,2.86847]
[1721640975641,0.72447331,3486.6,3486.1,2.86847]
[1721640975842,4.49417481,3486.7,3486.1,2.86847]
[1721640976056,0.72446211,3486.6,3486.1,2.86847]
[1721640976260,3.89204,3486.7,3486.1,2.86847]
[1721640976261,4.49417481,3486.7,3486.1,2.86847]
[1721640976469,0.72449959,3486.6,3486.1,2.86847]
[1721640976643,4.49417481,3486.7,3486.1,2.86847]
[1721640976839,0.12234461,3486.6,3486.1,2.86847]
[1721640977061,4.49417481,3486.7,3486.1,2.86847]
[1721640977375,0.72448546,3486.6,3486.2,2.86845]
[1721640977562,1.62613481,3486.7,3486.2,2.86845]
[1721640977756,0.12233504,3486.6,3486.2,2.86845]
[1721640977941,0.60213481,3486.7,3486.2,2.86845]
[1721640978137,0.12233341,3486.6,3486.2,2.86845]
[1721640978341,0.60213481,3486.7,3486.2,2.86845]
[1721640978579,0.12232348,3486.6,3486.2,2.86845]
[1721640978756,0.60213481,3486.7,3486.2,2.86845]
[1721640978955,0.12232338,3486.6,3486.2,2.86845]
[1721640979164,0.60213481,3486.7,3486.2,2.86845]
[1721640979376,0.12231912,3486.6,3486.2,2.86845]
[1721640979552,0.60213481,3486.7,3486.2,2.86845]
[1721640979869,0.12231929,3486.6,3486.2,2.86845]
[1721640980084,0.60213481,3486.7,3486.2,2.86845]
[1721640981062,0.12232174,3486.6,3486.2,2.86845]
[1721640981250,0.60213481,3486.7,3486.2,2.86845]
[1721640981671,0.12231148,3486.6,3486.2,2.86845]
[1721640981842,2.2799,3486.5,3486.1,2.86853]
[1721640982543,2.2799,3486.5,3486.0,2.86861]
[1721640982743,2.2799,3486.5,3486.1,2.86853]
[1721640983977,2.2799,3486.5,3486.2,2.86839]
[1721640984179,0.60213481,3486.7,3486.3,2.86836]
[1721640984480,0.60213481,3487.0,3486.6,2.86812]
[1721640984686,0.60213481,3487.0,3486.7,2.86803]
[1721640984884,0.60213481,3487.1,3486.7,2.86803]
[1721640985179,0.60213481,3487.1,3486.6,2.86812]
[1721640985180,0.60213481,3487.2,3486.8,2.86794]
[1721640985356,13.22757481,3487.3,3486.6,2.86806]
[1721640985557,13.22757481,3487.3,3486.5,1.024]
[1721640985558,13.22757481,3487.3,3486.7,2.86798]
[1721640985761,2.98977495,3487.2,3486.7,2.86798]
[1721640985961,3.46976481,3487.2,3486.4,2.86826]
[1721640986183,2.86763,3487.2,3486.4,3.8511942]
[1721640986546,0.12217942,3487.1,3486.4,3.8511942]
[1721640986752,2.86772,3487.1,3486.5,2.86819]
[1721640987073,2.4365,3487.0,3486.5,2.86819]
[1721640987580,2.4365,3487.0,3486.6,2.86812]
[1721640989058,2.86801,3486.8,3486.2,2.86841]
[1721640989783,3.05973481,3486.9,3486.2,2.86841]
[1721640990080,5.32548,3486.9,3486.2,2.86841]
[1721640990287,5.32548,3486.9,3486.4,2.86826]
[1721640990288,2.4576,3486.9,3486.4,2.86826]
[1721640991952,2.4576,3486.9,3486.2,2.86841]
[1721640992185,5.32549,3486.9,3486.3,2.86836]
[1721640993991,2.86796,3486.8,3486.2,2.86841]
[1721640994494,3.47009481,3486.8,3486.2,2.86841]
[1721640995071,0.60213481,3486.8,3486.3,2.86836]
[1721640996193,3.47014481,3486.8,3486.1,2.86847]
[1721640997264,2.86804,3486.7,3486.1,2.86847]
[1721640997498,2.3371,3486.6,3486.1,2.86847]
[1721641000496,2.93923481,3486.6,3486.1,2.86847]
[1721641000802,0.73262821,3486.5,3486.0,2.8686]
[1721641001103,0.60213481,3486.5,3486.0,2.8686]
[1721641001305,0.13052898,3486.4,3486.0,2.8686]
[1721641001613,0.60213481,3486.5,3486.0,2.8686]
[1721641002100,5.80735481,3486.6,3486.0,2.8686]
[1721641002267,0.73265706,3486.5,3486.1,2.86853]
[1721641002466,0.60213481,3486.5,3486.1,2.86853]
[1721641002694,0.1305291,3486.4,3486.1,2.86853]
[1721641002878,0.60213481,3486.5,3486.1,2.86853]
[1721641003092,0.13053638,3486.4,3486.1,2.86853]
[1721641003270,0.60213481,3486.5,3486.1,2.86853]
[1721641003896,0.13211457,3486.4,3486.1,2.86853]
[1721641004103,0.60213481,3486.5,3486.1,2.86853]
[1721641004399,0.13213568,3486.4,3486.1,2.86853]
[1721641004621,0.60213481,3486.5,3486.1,2.86853]
[1721641004769,0.13213087,3486.4,3486.1,2.86853]
[1721641004968,0.60213481,3486.5,3486.1,2.86853]
[1721641005204,0.73426839,3486.4,3486.1,2.86853]
[1721641005497,0.60213481,3486.4,3486.1,2.86853]
[1721641006084,0.13216858,3486.3,3485.9,2.86869]
[1721641006282,0.60213481,3486.4,3485.9,2.86869]
[1721641006488,0.1321782,3486.3,3485.9,2.86869]
[1721641006691,0.60213481,3486.4,3485.9,2.86869]
[1721641006870,0.13217685,3486.3,3485.9,2.86869]
[1721641007066,0.60213481,3486.4,3485.9,2.86869]
[1721641007666,0.60213481,3486.4,3486.0,2.8686]
[1721641008398,0.13219778,3486.3,3486.0,2.8686]
[1721641008700,0.60213481,3486.4,3486.0,2.8686]
[1721641008897,0.13219821,3486.3,3486.0,2.8686]
[1721641009112,0.60213481,3486.4,3486.0,2.8686]
[1721641009285,0.7343757,3486.3,3486.0,2.8686]
[1721641009489,0.13224919,3486.2,3486.0,2.8686]
[1721641009677,0.60213481,3486.3,3486.0,2.8686]
[1721641010378,0.13226134,3486.2,3485.8,2.86873]
[1721641010608,0.73440791,3486.2,3485.9,2.86868]
[1721641010812,0.60213481,3486.2,3485.9,2.86868]
[1721641010972,0.60213481,3486.3,3485.9,2.86868]
[1721641011177,0.73440853,3486.2,3485.9,2.86868]
[1721641011497,0.60213481,3486.2,3485.8,2.86876]
[1721641011994,0.73442278,3486.2,3485.6,2.4445]
[1721641012211,0.60213481,3485.8,3485.0,1.95064911]
[1721641012389,0.73442278,3485.7,3485.1,2.86935]
[1721641012590,0.73442278,3485.6,3485.1,2.86935]
[1721641012916,0.13228797,3485.5,3485.1,2.86935]
[1721641013069,0.60213481,3485.6,3485.1,3.53630484]
[1721641013271,0.60213481,3485.7,3485.2,2.86922]
[1721641013503,0.13237378,3485.6,3485.2,2.86922]
[1721641013675,0.73451718,3485.6,3485.2,2.86922]
[1721641013885,0.60213481,3485.6,3485.2,2.86922]
[1721641014315,0.60213481,3485.7,3485.2,2.86922]
[1721641014509,0.13234524,3485.6,3485.2,2.86922]
[1721641014681,0.60213481,3485.7,3485.2,2.86922]
[1721641014874,0.13234523,3485.6,3485.2,2.86922]
[1721641015075,0.60213481,3485.7,3485.2,2.86922]
[1721641015711,0.60213481,3485.7,3485.3,2.86917]
[1721641016008,0.60213481,3485.7,3485.0,2.86943]
[1721641016009,2.38702436,3485.6,3485.0,2.86943]
[1721641016304,5.12364,3485.6,3485.0,2.86943]
[1721641018025,2.2547,3485.6,3485.1,2.86935]
[1721641019024,2.2547,3485.6,3485.2,2.86927]
[1721641019531,2.2547,3485.6,3485.0,2.86937]
[1721641020508,5.12365,3485.6,3485.0,2.86937]
[1721641021638,2.2547,3485.6,3485.1,2.86934]
[1721641021875,2.2547,3485.6,3485.2,2.86926]
[1721641021993,2.2547,3485.6,3485.3,2.86919]
[1721641022398,2.2547,3485.6,3485.4,2.86911]
[1721641023137,2.2547,3485.6,3485.2,2.86922]
[1721641025359,2.2547,3485.6,3484.9,3.89348]
[1721641025360,2.2547,3485.6,3485.3,2.86919]
[1721641026658,2.2547,3485.6,3485.1,2.86929]
[1721641026969,2.2547,3485.6,3485.2,2.86926]
[1721641027113,2.2547,3485.6,3485.1,2.86935]
[1721641027456,5.12365,3485.6,3484.9,2.86946]
[1721641027819,5.12365,3485.6,3485.0,2.86944]
[1721641030642,2.86903,3485.5,3484.5,1.024]
[1721641030842,2.86903,3485.5,3484.5,4.958013]
[1721641031445,2.86903,3485.5,3484.9,2.86947]
[1721641031998,2.4174,3485.4,3484.9,2.86947]
[1721641032858,5.28651,3485.4,3484.9,2.86947]
[1721641033264,1.024,3485.3,3484.6,2.86976]
[1721641033486,2.4042,3485.2,3484.6,2.86976]
[1721641033787,5.27348,3485.2,3484.6,2.86976]
[1721641033996,2.86928,3485.2,3484.6,2.86976]
[1721641034146,5.25445,3485.1,3484.6,2.86976]
[1721641034340,2.3851,3485.1,3484.6,2.86976]
[1721641035492,2.3859,3485.5,3484.9,2.86944]
[1721641035713,2.3859,3485.5,3485.0,2.86937]
[1721641037456,2.3859,3485.5,3485.1,2.86935]
[1721641042871,2.3859,3485.5,3484.9,2.86949]
[1721641042872,2.95263481,3485.7,3485.4,2.86911]
[1721641043073,2.3505,3485.7,3485.4,2.86911]
[1721641044467,2.2834,3485.9,3485.5,1.024]
[1721641044893,2.2834,3485.9,3485.8,2.86878]
[1721641045091,8.08213481,3486.2,3485.9,2.86864]
[1721641045092,2.2619,3486.1,3485.9,2.86864]
[1721641046385,8.08213481,3486.2,3486.1,2.86853]
[1721641046386,7.48,3486.2,3486.1,2.86853]
[1721641046594,2.92793481,3486.4,3486.0,2.86861]
[1721641046791,2.92793481,3486.6,3485.9,1.024]
[1721641046978,2.92793481,3486.6,3486.3,2.86831]
[1721641048268,0.13196097,3486.5,3486.3,2.86831]
[1721641048599,2.92793481,3486.6,3486.3,2.86831]
[1721641050869,0.13195895,3486.5,3486.2,2.86844]
[1721641051073,2.92793481,3486.6,3486.2,2.86844]
[1721641051310,0.13196599,3486.5,3486.2,2.86844]
[1721641051487,2.92793481,3486.6,3486.2,2.86844]
[1721641051681,0.13197086,3486.5,3486.2,2.86844]
[1721641052007,2.92793481,3486.6,3486.2,2.86844]
[1721641052188,0.13196933,3486.5,3486.2,2.86844]
[1721641052518,2.92660103,3486.6,3486.2,2.86844]
[1721641052690,0.13196848,3486.5,3486.2,2.86844]
[1721641052889,2.92660103,3486.6,3486.2,2.86844]
[1721641053199,0.73277798,3486.5,3486.2,2.86844]
[1721641054522,3.60097798,3486.5,3485.9,2.86868]
[1721641054693,3.06667798,3486.4,3485.7,2.86886]
[1721641054891,2.93470103,3486.4,3485.9,2.86864]
[1721641055215,0.13203801,3486.3,3485.9,2.86864]
[1721641055417,2.93470103,3486.4,3486.0,2.86853]
[1721641055614,2.3339,3486.4,3486.0,2.86853]
[1721641055914,0.60080103,3486.5,3486.2,2.86839]
[1721641056096,0.7328118,3486.5,3486.3,2.86829]
[1721641056420,0.60080103,3486.6,3486.3,2.86829]
[1721641057517,0.73278841,3486.5,3486.3,2.86829]
[1721641057680,0.60080103,3486.5,3486.3,2.86829]
[1721641057888,0.60080103,3486.6,3486.3,2.86829]
[1721641058285,0.73278909,3486.6,3486.3,2.86829]
[1721641058524,0.60080103,3486.6,3486.3,2.86829]
[1721641059608,0.60080103,3486.6,3486.1,2.2686]
[1721641059909,0.60080103,3486.6,3486.2,2.86841]
[1721641060111,0.60080103,3486.6,3486.4,2.86826]
[1721641060306,0.60080103,3486.7,3486.4,2.86826]
[1721641060708,0.13194432,3486.6,3486.4,2.86826]
[1721641060894,0.60080103,3486.7,3486.4,2.86826]
[1721641061097,0.1319439,3486.6,3486.4,2.86826]
[1721641061302,0.60080103,3486.7,3486.4,2.86826]
[1721641061512,0.13193111,3486.6,3486.4,2.86826]
[1721641061697,0.60080103,3486.7,3486.4,2.86826]
[1721641061931,0.13193146,3486.6,3486.4,2.86826]
[1721641062115,0.60080103,3486.7,3486.4,2.86826]
[1721641062317,0.13193162,3486.6,3486.4,2.86826]
[1721641062524,0.60080103,3486.7,3486.4,2.86826]
[1721641062820,0.13192066,3486.6,3486.4,2.86826]
[1721641063024,0.60080103,3486.7,3486.5,2.86815]
[1721641063197,0.1319206,3486.6,3486.5,2.86815]
[1721641063405,0.60080103,3486.7,3486.5,2.86815]
[1721641063920,0.60080103,3486.7,3486.3,2.86832]
[1721641064219,0.60080103,3486.7,3486.4,2.86828]
[1721641064729,0.60080103,3486.8,3486.6,2.86812]
[1721641065089,0.60080103,3486.9,3486.6,2.86812]
[1721641065287,0.13183305,3486.8,3486.6,2.86812]
[1721641065498,0.60080103,3486.9,3486.6,2.86812]
[1721641066490,0.13182055,3486.8,3486.4,2.86822]
[1721641066747,0.73266887,3486.8,3486.4,2.86822]
[1721641066971,0.60080103,3486.8,3486.4,2.86822]
[1721641067098,0.60080103,3486.8,3486.5,2.8682]
[1721641067294,0.60080103,3486.9,3486.5,2.8682]
[1721641067539,7.18341155,3487.1,3486.5,2.8682]
[1721641067540,0.60080103,3487.0,3486.5,2.8682]
[1721641067745,0.73263086,3486.9,3486.5,2.8682]
[1721641067893,0.60080103,3486.9,3486.5,2.8682]
[1721641068097,0.13184617,3486.8,3486.5,2.8682]
[1721641068404,0.60080103,3486.9,3486.5,2.8682]
[1721641068905,0.1318302,3486.8,3486.5,2.8682]
[1721641069105,0.60080103,3486.9,3486.5,2.8682]
[1721641069722,7.18341155,3487.1,3486.5,2.8682]
[1721641069723,0.60080103,3487.0,3486.5,2.8682]
[1721641069894,0.13178886,3486.9,3486.5,2.8682]
[1721641070094,0.60080103,3487.0,3486.5,2.8682]
[1721641070595,0.13178825,3486.9,3486.5,2.8682]
[1721641070907,0.60080103,3487.0,3486.5,2.8682]
[1721641071517,6.88301103,3487.1,3486.5,2.8682]
[1721641071727,0.13174938,3487.0,3486.5,2.8682]
[1721641071935,6.88301103,3487.1,3486.5,2.8682]
[1721641072130,0.13175911,3487.0,3486.5,2.8682]
[1721641072332,6.88301103,3487.1,3486.5,2.8682]
[1721641072527,0.73256754,3487.0,3486.5,2.8682]
[1721641072735,0.13179276,3486.9,3486.4,2.86828]
[1721641072918,3.46860103,3487.0,3486.4,2.86828]
[1721641073273,0.13179425,3486.9,3486.4,2.86828]
[1721641073560,3.46860103,3487.0,3486.4,2.86828]
[1721641073765,0.13179333,3486.9,3486.5,2.8682]
[1721641073959,3.46860103,3487.0,3486.3,2.8683]
[1721641074158,0.13181231,3486.9,3486.2,2.86844]
[1721641074365,3.46860103,3487.0,3486.2,2.86844]
[1721641074547,0.13179187,3486.9,3486.2,2.86844]
[1721641074752,3.46860103,3487.0,3486.2,2.86844]
[1721641074953,2.99967628,3486.9,3486.3,2.86836]
[1721641075133,2.86788,3486.9,3486.3,2.86836]
[1721641075327,3.46868103,3486.9,3486.3,2.86836]
[1721641075747,2.443,3486.7,3486.3,2.86834]
[1721641075936,2.443,3486.7,3486.0,2.86854]
[1721641076332,2.443,3486.7,3486.3,2.86836]
[1721641076658,2.443,3486.7,3486.2,2.86838]
[1721641076859,2.443,3486.7,3486.4,2.86826]